bitfinex-derivatives/quotes_BTCF0:USTF0_20230402
["timestamp","ask_amount","ask_price","bid_price","bid_amount"]
[1680472063749,1.1,27996.0,27995.0,0.2284]
[1680472064545,1.102,27996.0,27995.0,0.2284]
[1680472064746,1.102,27996.0,27995.0,0.6419789]
[1680472064955,1.103,27996.0,27995.0,0.6419789]
[1680472065351,1.1,27996.0,27995.0,0.6419789]
[1680472065645,1.103,27996.0,27995.0,0.2284]
[1680472065948,1.103,27996.0,27995.0,0.1392]
[1680472066651,1.103,27996.0,27995.0,0.0892]
[1680472067156,1.4027,27996.0,27995.0,0.0892]
[1680472068451,1.4007,27996.0,27995.0,0.0892]
[1680472068653,1.4027,27996.0,27995.0,0.0892]
[1680472069248,1.4027,27996.0,27995.0,0.14255382]
[1680472069648,1.4027,27996.0,27995.0,0.0892]
[1680472070141,1.4017,27996.0,27995.0,0.0892]
[1680472070553,1.4027,27996.0,27995.0,0.0892]
[1680472070952,1.4027,27996.0,27995.0,0.14255363]
[1680472072246,0.3027,27996.0,27995.0,0.14255363]
[1680472072452,1.4027,27996.0,27995.0,0.14255363]
[1680472073057,1.4027,27996.0,27995.0,0.0892]
[1680472073457,1.4027,27996.0,27995.0,0.0888]
[1680472073961,1.4017,27996.0,27995.0,0.0888]
[1680472075352,1.4027,27996.0,27995.0,0.0888]
[1680472076057,1.49641682,27996.0,27995.0,0.08298956]
[1680472076256,1.49541682,27996.0,27995.0,0.08298956]
[1680472076457,1.49541682,27996.0,27995.0,0.07819118]
[1680472076647,1.49541682,27996.0,27995.0,0.07254311]
[1680472076850,1.49541682,27996.0,27995.0,0.06686817]
[1680472077046,1.49541682,27996.0,27995.0,0.06145713]
[1680472081954,1.49541682,27996.0,27995.0,0.0893]
[1680472084465,1.09541682,27996.0,27995.0,0.1786]
[1680472084656,0.39541682,27996.0,27995.0,0.1786]
[1680472085057,1.49541682,27996.0,27995.0,0.1786]
[1680472085954,1.49641682,27996.0,27995.0,0.1786]
[1680472086449,1.19571682,27996.0,27995.0,0.1786]
[1680472086654,0.09571682,27996.0,27995.0,0.23336608]
[1680472086854,0.09571682,27996.0,27995.0,0.53346608]
[1680472087961,0.09571682,27996.0,27995.0,0.53846608]
[1680472088160,0.09571682,27996.0,27995.0,0.58846608]
[1680472088556,0.09571682,27996.0,27995.0,0.94426608]
[1680472089160,0.09671682,27996.0,27995.0,0.94426608]
[1680472089761,0.09671682,27996.0,27995.0,0.8895]
[1680472090465,0.07331682,27996.0,27995.0,0.8895]
[1680472090658,1.1,28000.0,27996.0,0.05]
[1680472090861,0.3007,28003.0,27999.0,0.0893]
[1680472091054,1.1,28000.0,27997.0,0.39626567]
[1680472091260,0.07397723,28002.0,27999.0,0.1777]
[1680472091461,0.07397723,28002.0,28001.0,0.0886]
[1680472092363,0.07497723,28002.0,28001.0,0.0956]
[1680472093159,0.07497723,28002.0,28001.0,0.1849]
[1680472093360,0.07497723,28002.0,28001.0,0.5407]
[1680472093558,1.4007,28008.0,28003.0,0.3558]
[1680472093763,1.1,28010.0,28007.0,0.1786]
[1680472094068,0.05,28009.0,28008.0,0.46062094]
[1680472094367,0.05,28009.0,28008.0,0.54992094]
[1680472094555,1.127,28010.0,28008.0,0.54992094]
[1680472094759,1.127,28010.0,28009.0,0.1393]
[1680472095156,0.3007,28014.0,28009.0,0.1393]
[1680472095363,1.1,28010.0,28009.0,0.05]
[1680472095668,1.1,28010.0,28009.0,0.0893]
[1680472095867,1.1,28018.0,28010.0,0.3558]
[1680472096165,0.3007,28021.0,28017.0,0.0893]
[1680472096366,1.1,28020.0,28019.0,0.0893]
[1680472097163,0.05,28020.0,28019.0,0.0893]
[1680472097360,0.077,28020.0,28019.0,0.001]
[1680472097864,0.027,28020.0,28019.0,0.001]
[1680472098270,0.3007,28021.0,28020.0,0.1786]
[1680472099560,0.05,28024.0,28020.0,0.1786]
[1680472099766,0.3507,28026.0,28024.0,0.05]
[1680472099962,0.3507,28026.0,28025.0,0.0893]
[1680472101170,0.40967364,28026.0,28025.0,0.08834161]
[1680472101373,0.40967364,28026.0,28025.0,0.0866679]
[1680472101671,0.40967364,28026.0,28025.0,0.08470578]
[1680472101872,0.40967364,28026.0,28025.0,0.08275111]
[1680472102069,0.40967364,28026.0,28025.0,0.08782179]
[1680472102371,0.35967364,28026.0,28025.0,0.08594399]
[1680472102575,0.35967364,28026.0,28025.0,0.08412966]
[1680472102976,0.35967364,28026.0,28025.0,0.0819824]
[1680472103173,0.35967364,28026.0,28025.0,0.08036361]
[1680472104077,1.45967364,28026.0,28025.0,0.08036361]
[1680472104274,1.45967364,28026.0,28025.0,0.0885]
[1680472106368,1.15897364,28026.0,28025.0,0.0885]
[1680472107886,1.15897364,28026.0,28025.0,0.1777]
[1680472109878,0.05897364,28026.0,28025.0,0.1777]
[1680472110078,1.15897364,28026.0,28025.0,0.1777]
[1680472111883,1.15897364,28026.0,28025.0,0.0892]
[1680472112291,0.05897364,28026.0,28025.0,0.0892]
[1680472113187,0.027,28026.0,28025.0,0.0892]
[1680472113793,0.027,28026.0,28025.0,0.49487728]
[1680472115891,0.027,28026.0,28025.0,0.79557728]
[1680472117184,1.4007,28033.0,28025.0,0.79557728]
[1680472117185,1.4007,28033.0,28027.0,0.0892]
[1680472117390,1.4007,28033.0,28030.0,0.0892]
[1680472117693,0.05,28032.0,28030.0,0.0892]
[1680472118695,0.075,28032.0,28030.0,0.0902]
[1680472118893,0.025,28032.0,28031.0,0.0889]
[1680472119295,0.075,28032.0,28031.0,0.0889]
[1680472119497,0.025,28032.0,28031.0,0.0889]
[1680472120090,1.1,28033.0,28031.0,0.0889]
[1680472120291,0.021,28032.0,28030.0,0.001]
[1680472120586,0.05,28031.0,28028.0,0.05]
[1680472120896,0.011,28032.0,28030.0,0.1776]
[1680472121096,0.011,28032.0,28028.0,0.05]
[1680472121097,0.011,28032.0,28031.0,0.2276]
[1680472121398,0.011,28032.0,28031.0,0.60011899]
[1680472121590,0.061,28032.0,28031.0,0.2276]
[1680472121790,0.011,28032.0,28031.0,0.2276]
[1680472121992,0.011,28032.0,28031.0,0.2269]
[1680472122593,1.1,28033.0,28031.0,0.2269]
[1680472122897,0.01,28032.0,28031.0,0.1395]
[1680472123097,0.01,28032.0,28031.0,0.2287]
[1680472123497,1.1,28033.0,28031.0,0.2277]
[1680472123694,1.117,28033.0,28032.0,0.0885]
[1680472123891,1.117,28033.0,28032.0,0.1385]
[1680472124162,1.1,28033.0,28032.0,0.1385]
[1680472124294,1.1,28033.0,28032.0,0.0885]
[1680472125399,1.117,28033.0,28032.0,0.0895]
[1680472130102,1.117,28033.0,28032.0,0.178]
[1680472130306,1.117,28033.0,28032.0,0.0895]
[1680472130800,1.117,28033.0,28032.0,0.1395]
[1680472131002,1.117,28033.0,28032.0,0.2287]
[1680472131201,1.117,28033.0,28032.0,0.60055306]
[1680472132495,0.017,28033.0,28032.0,0.60055306]
[1680472132701,1.117,28033.0,28032.0,0.60055306]
[1680472133007,0.017,28033.0,28032.0,0.60055306]
[1680472135502,1.1,28037.0,28033.0,0.05]
[1680472135699,1.1,28040.0,28036.0,0.4784]
[1680472135899,1.1,28040.0,28039.0,0.0892]
[1680472137800,1.1,28040.0,28039.0,0.0912]
[1680472137801,1.106,28040.0,28039.0,0.0912]
[1680472138398,1.1,28040.0,28039.0,0.0892]
[1680472138604,1.106,28040.0,28039.0,0.0912]
[1680472149811,1.106,28040.0,28039.0,0.14395147]
[1680472151915,1.1,28041.0,28039.0,0.91432258]
[1680472152121,1.1,28041.0,28040.0,0.1392]
[1680472152514,1.1,28041.0,28040.0,0.4918755]
[1680472152918,1.1,28041.0,28040.0,0.4938755]
[1680472153119,1.1,28043.0,28042.0,0.0885]
[1680472153316,1.1,28043.0,28042.0,0.1777]
[1680472153914,1.1,28043.0,28042.0,0.1797]
[1680472155622,0.17064998,28048.0,28042.0,0.1797]
[1680472155813,0.05,28047.0,28044.0,0.0892]
[1680472156018,1.1,28045.0,28044.0,0.0892]
[1680472157015,1.1,28045.0,28044.0,0.0912]
[1680472157219,1.1,28045.0,28044.0,0.0733]
[1680472157724,1.1,28045.0,28044.0,0.1446]
[1680472160025,0.05,28047.0,28044.0,0.1436]
[1680472160223,0.05,28049.0,28046.0,0.0713]
[1680472160423,1.15,28049.0,28048.0,0.0713]
[1680472160723,1.15,28049.0,28048.0,0.1415]
[1680472161029,1.1,28049.0,28048.0,0.1415]
[1680472161515,1.1,28052.0,28048.0,0.1435]
[1680472161716,1.1,28052.0,28051.0,0.0713]
[1680472162119,1.1,28052.0,28051.0,0.0891]
[1680472162726,1.1,28052.0,28051.0,0.0911]
[1680472166020,1.1,28052.0,28051.0,0.09540073]
[1680472166926,1.1,28052.0,28051.0,0.39610073]
[1680472168420,1.1,28052.0,28051.0,0.09540073]
[1680472169629,1.1,28052.0,28051.0,0.39610073]
[1680472174928,1.1,28052.0,28051.0,0.09540073]
[1680472177920,1.1,28052.0,28051.0,0.00630073]
[1680472183131,1.1,28046.0,28045.0,0.0888]
[1680472183330,1.1,28046.0,28039.0,0.67925147]
[1680472183331,1.1,28041.0,28039.0,0.76835147]
[1680472183527,0.05,28040.0,28039.0,0.44255147]
[1680472184733,0.05,28040.0,28036.0,0.05]
[1680472184734,0.05178151,28040.0,28035.0,0.0891]
[1680472184923,1.1,28036.0,28035.0,0.1391]
[1680472185127,1.1,28036.0,28035.0,0.0891]
[1680472185527,1.1,28036.0,28034.0,0.3007]
[1680472185736,0.05,28035.0,28034.0,0.3007]
[1680472187434,0.053,28035.0,28034.0,0.3097]
[1680472188240,1.1,28025.0,28023.0,0.3007]
[1680472188434,1.1,28025.0,28024.0,0.05]
[1680472188637,1.1891,28025.0,28022.0,0.05437349]
[1680472188841,0.3007,28027.0,28020.0,0.1391]
[1680472188842,1.1,28021.0,28020.0,0.05]
[1680472189134,1.1,28021.0,28019.0,0.3007]
[1680472189642,1.1,28015.0,28014.0,0.3258]
[1680472189935,1.1,28015.0,28013.0,0.05237234]
[1680472190141,1.1,28012.0,28011.0,0.0891]
[1680472190329,1.1,28012.0,28011.0,0.14134603]
[1680472190735,1.13878672,28012.0,28011.0,0.0891]
[1680472191441,1.22788672,28012.0,28009.0,0.05382634]
[1680472191735,1.22788672,28012.0,28007.0,0.05]
[1680472191736,1.1,28009.0,28007.0,0.05]
[1680472191935,0.05,28008.0,28006.0,0.05]
[1680472192538,1.1,28006.0,28005.0,0.05]
[1680472193633,1.103,28006.0,28004.0,0.0889]
[1680472196041,1.103,28006.0,28004.0,0.0885]
[1680472196042,0.09670375,28005.0,28004.0,0.0885]
[1680472196239,0.04670375,28005.0,28004.0,0.0885]
[1680472196841,0.04670375,28005.0,28004.0,0.14212984]
[1680472198131,0.04970375,28005.0,28004.0,0.14212984]
[1680472199538,0.04970375,28005.0,28004.0,0.19212984]
[1680472201136,0.3007,28010.0,28005.0,0.05]
[1680472201337,1.1,28008.0,28005.0,0.05]
[1680472202435,1.103,28008.0,28005.0,0.053]
[1680472204044,0.003,28008.0,28007.0,0.178]
[1680472204241,0.3007,28010.0,28007.0,0.178]
[1680472204242,0.3007,28010.0,28008.0,0.05]
[1680472204447,0.3007,28014.0,28009.0,0.0886]
[1680472204744,0.3007,28014.0,28013.0,0.0893]
[1680472204940,1.4007,28014.0,28013.0,0.0893]
[1680472205152,0.9848,28014.0,28013.0,0.1393]
[1680472205540,0.3007,28017.0,28013.0,0.2283]
[1680472205735,0.3007,28017.0,28016.0,0.1778]
[1680472205945,0.3007,28020.0,28016.0,0.1778]
[1680472206143,0.3007,28020.0,28019.0,0.0887]
[1680472206451,0.9315,28021.0,28019.0,0.0887]
[1680472207036,0.9315,28021.0,28019.0,0.0897]
[1680472207245,0.3007,28024.0,28020.0,0.05]
[1680472207446,1.2322,28024.0,28023.0,0.0893]
[1680472207641,0.3007,28024.0,28023.0,0.0893]
[1680472208037,1.2322,28024.0,28023.0,0.0893]
[1680472208252,0.3057,28024.0,28023.0,0.0893]
[1680472208739,0.26528618,28026.0,28024.0,0.05]
[1680472208935,0.9315,28028.0,28025.0,0.1778]
[1680472209141,0.9315,28028.0,28027.0,0.0893]
[1680472209750,0.3007,28033.0,28027.0,0.0893]
[1680472210048,1.2322,28033.0,28032.0,0.0885]
[1680472210644,0.3007,28033.0,28032.0,0.0885]
[1680472210844,0.3007,28033.0,28032.0,0.0905]
[1680472211348,0.3007,28036.0,28033.0,0.0886]
[1680472211549,0.3007,28036.0,28035.0,0.0886]
[1680472211550,0.05,28036.0,28035.0,0.0886]
[1680472212049,0.05166503,28036.0,28035.0,0.0886]
[1680472212550,0.93316503,28036.0,28035.0,0.0886]
[1680472212949,0.93316503,28036.0,28035.0,0.0936]
[1680472213344,0.00166503,28036.0,28035.0,0.0936]
[1680472213543,0.9315,28038.0,28035.0,0.0936]
[1680472213743,0.9315,28038.0,28037.0,0.0885]
[1680472214347,0.9315,28038.0,28037.0,0.1771]
[1680472215543,0.3007,28040.0,28037.0,0.1961]
[1680472215751,1.2322,28040.0,28039.0,0.0892]
[1680472221251,0.3007,28040.0,28039.0,0.09175357]
[1680472221452,0.05,28044.0,28039.0,0.09175357]
[1680472221653,0.05,28044.0,28041.0,0.0893]
[1680472221852,0.3507,28045.0,28043.0,0.0892]
[1680472222053,0.05,28044.0,28043.0,0.0892]
[1680472223953,0.05,28044.0,28043.0,0.0912]
[1680472226052,0.3507,28045.0,28043.0,0.0912]
[1680472226554,0.05,28044.0,28043.0,0.0912]
[1680472226758,0.05,28044.0,28043.0,0.09739881]
[1680472227157,0.05,28044.0,28043.0,0.09729881]
[1680472228353,0.05,28044.0,28043.0,0.00819881]
[1680472228658,0.05,28044.0,28043.0,0.002]
[1680472229458,0.9815,28044.0,28041.0,0.0885]
[1680472229659,0.9315,28042.0,28041.0,0.0885]
[1680472229861,0.05,28044.0,28042.0,0.00749073]
[1680472230062,0.9315,28043.0,28041.0,0.0885]
[1680472230360,0.05,28042.0,28041.0,0.0885]
[1680472230558,0.9815,28042.0,28041.0,0.0905]
[1680472230958,0.1391,28042.0,28041.0,0.002]
[1680472231258,0.9315,28037.0,28035.0,0.05]
[1680472231450,0.05,28036.0,28034.0,0.14397523]
[1680472232666,0.05,28036.0,28034.0,0.16197523]
[1680472232851,0.1382,28036.0,28034.0,0.07247523]
[1680472233058,0.1382,28036.0,28034.0,0.018]
[1680472233955,0.1382,28036.0,28031.0,0.0883]
[1680472234156,0.1382,28036.0,28028.0,0.0891]
[1680472234157,0.0884,28033.0,28028.0,0.0891]
[1680472234359,0.0884,28033.0,28025.0,0.05463454]
[1680472234360,0.9315,28026.0,28025.0,0.05463454]
[1680472234563,0.9315,28026.0,28024.0,0.089]
[1680472234765,0.05,28025.0,28024.0,0.089]
[1680472235957,0.051,28025.0,28024.0,0.028]
[1680472237160,0.051,28025.0,28024.0,0.025]
[1680472237355,0.05,28025.0,28022.0,0.14232024]
[1680472237561,0.051,28025.0,28024.0,0.018]
[1680472238665,0.051,28025.0,28024.0,0.012]
[1680472239259,0.051,28025.0,28017.0,0.05]
[1680472239260,0.9315,28022.0,28017.0,0.05]
[1680472239455,0.9315,28013.0,28004.0,0.3007]
[1680472239757,0.05,28012.0,28005.0,0.05]
[1680472240063,0.05,28012.0,28009.0,0.0891]
[1680472240254,0.05,28012.0,28010.0,0.05]
[1680472240457,0.05,28012.0,28009.0,0.0891]
[1680472240654,0.9315,28008.0,28006.0,0.139]
[1680472240859,0.05,28007.0,28006.0,0.089]
[1680472241061,0.9315,28008.0,28006.0,0.089]
[1680472241359,0.9315,28008.0,28007.0,0.089]
[1680472241861,0.97147292,28008.0,28007.0,0.089]
[1680472242267,0.96947292,28008.0,28007.0,0.089]
[1680472242561,0.97147292,28008.0,28007.0,0.105]
[1680472244260,0.97147292,28008.0,28004.0,0.05333501]
[1680472244466,0.9315,28002.0,28001.0,0.05]
[1680472244963,0.9315,28002.0,28001.0,0.0887]
[1680472245166,0.9315,28002.0,28001.0,0.1777]
[1680472245362,0.9345,28002.0,28001.0,0.1777]
[1680472246661,0.003,28002.0,28001.0,0.1777]
[1680472246855,0.9345,28002.0,28001.0,0.1777]
[1680472247064,0.9345,28002.0,27999.0,0.05235505]
[1680472247262,0.9345,28002.0,27994.0,0.3167]
[1680472247467,0.9345,28002.0,27998.0,0.0883]
[1680472247468,0.9315,27999.0,27998.0,0.0883]
[1680472247761,0.9315,27999.0,27992.0,6e-05]
[1680472247962,0.9315,27999.0,27993.0,0.05]
[1680472248269,0.0891,27997.0,27993.0,0.05]
[1680472248464,0.0891,27997.0,27992.0,6e-05]
[1680472248465,0.9315,27996.0,27992.0,6e-05]
[1680472248659,0.9815,27996.0,27992.0,6e-05]
[1680472248865,0.0891,27994.0,27992.0,6e-05]
[1680472249060,0.05,27993.0,27992.0,6e-05]
[1680472250465,0.053,27993.0,27992.0,6e-05]
[1680472252272,0.003,27993.0,27992.0,6e-05]
[1680472252475,0.053,27993.0,27992.0,6e-05]
[1680472252666,0.003,27993.0,27992.0,6e-05]
[1680472252862,0.052,27993.0,27992.0,6e-05]
[1680472253279,0.003,27993.0,27992.0,6e-05]
[1680472253476,0.053,27993.0,27992.0,6e-05]
[1680472253773,0.003,27993.0,27992.0,6e-05]
[1680472253979,0.00294,27993.0,27992.0,0.17806]
[1680472254370,0.002,27993.0,27992.0,0.17806]
[1680472255776,0.9315,27994.0,27992.0,0.17806]
[1680472255972,0.002,27993.0,27992.0,0.08896]
[1680472256170,0.002,27993.0,27992.0,0.17806]
[1680472256473,0.003,27993.0,27992.0,0.08856]
[1680472256671,0.003,27993.0,27992.0,0.17766]
[1680472256875,0.06103348,27993.0,27992.0,0.17766]
[1680472257766,0.93153348,27993.0,27992.0,0.17766]
[1680472258070,0.3007,27996.0,27993.0,0.93153]
[1680472258274,0.9315,27997.0,27995.0,0.0883]
[1680472258473,0.9315,27997.0,27996.0,0.1776]
[1680472258968,0.9315,27997.0,27996.0,0.55030482]
[1680472259371,0.9315,27997.0,27996.0,0.55090482]
[1680472259573,0.3007,28005.0,27996.0,0.55090482]
[1680472259770,0.3007,28005.0,28001.0,0.0893]
[1680472259969,0.3007,28005.0,28002.0,0.05]
[1680472261670,0.3007,28005.0,28001.0,0.0893]
[1680472261872,0.3007,28005.0,28002.0,0.053]
[1680472262070,0.3007,28005.0,28003.0,0.0893]
[1680472262270,0.3007,28005.0,28004.0,0.05]
[1680472263370,0.3007,28005.0,28004.0,0.1423]
[1680472264878,0.05,28009.0,28004.0,0.1423]
[1680472265072,0.3007,28010.0,28004.0,0.053]
[1680472265273,0.05,28009.0,28006.0,0.0893]
[1680472265577,0.0723271,28009.0,28007.0,0.05]
[1680472265774,0.0963271,28009.0,28007.0,0.05]
[1680472265969,0.0463271,28009.0,28007.0,0.05]
[1680472266177,0.0223271,28009.0,28007.0,0.05]
[1680472266377,0.0463271,28009.0,28007.0,0.05]
[1680472267877,0.0463271,28009.0,28008.0,0.0893]
[1680472269274,0.0223271,28009.0,28008.0,0.0893]
[1680472269474,0.0463271,28009.0,28008.0,0.0893]
[1680472269680,0.024,28009.0,28008.0,0.0893]
[1680472270577,0.05,28014.0,28009.0,0.05]
[1680472270778,0.3007,28015.0,28013.0,0.0893]
[1680472271774,0.3127,28015.0,28013.0,0.0913]
[1680472271975,0.01677498,28014.0,28013.0,0.002]
[1680472272182,0.01677498,28014.0,28013.0,0.0913]
[1680472273672,0.02877498,28014.0,28013.0,0.0913]
[1680472279187,0.32947498,28014.0,28013.0,0.0913]
[1680472280787,0.32947498,28014.0,28013.0,0.1798]
[1680472281590,0.31847498,28014.0,28013.0,0.1778]
[1680472282591,0.31847498,28014.0,28013.0,0.5169]
[1680472282592,0.01777498,28014.0,28013.0,0.5169]
[1680472283093,0.001,28014.0,28013.0,0.5169]
[1680472283489,0.05,28020.0,28013.0,0.5219]
[1680472283690,0.3007,28021.0,28019.0,0.0893]
[1680472283994,0.3007,28021.0,28020.0,0.1393]
[1680472284695,0.3117,28021.0,28020.0,0.1393]
[1680472285692,0.3117,28021.0,28020.0,0.0893]
[1680472285893,0.3117,28021.0,28020.0,0.0913]
[1680472286891,0.32052416,28021.0,28020.0,0.0903]
[1680472287295,0.31752416,28021.0,28020.0,0.0903]
[1680472289297,0.31052416,28021.0,28020.0,0.0893]
[1680472289598,0.00882416,28021.0,28020.0,0.0941]
[1680472289901,0.3007,28026.0,28020.0,0.0941]
[1680472290094,0.3007,28026.0,28022.0,0.0891]
[1680472290095,0.05,28025.0,28022.0,0.0891]
[1680472290293,0.05,28025.0,28023.0,0.05]
[1680472290491,0.05,28025.0,28024.0,0.0892]
[1680472291099,0.3007,28026.0,28024.0,0.0892]
[1680472291298,0.3007,28026.0,28025.0,0.1391]
[1680472292300,0.3117,28026.0,28025.0,0.1411]
[1680472293202,0.3117,28026.0,28025.0,0.14836605]
[1680472294302,0.05,28030.0,28025.0,0.23756605]
[1680472294495,0.05,28030.0,28029.0,0.0886]
[1680472295895,0.05,28030.0,28029.0,0.0906]
[1680472296101,0.3007,28031.0,28029.0,0.0906]
[1680472296302,0.3007,28031.0,28030.0,0.0892]
[1680472298097,0.3007,28031.0,28030.0,0.0912]
[1680472300304,0.3007,28031.0,28030.0,0.1795]
[1680472302005,0.3007,28031.0,28030.0,0.19113941]
[1680472304511,0.3007,28031.0,28030.0,0.10193941]
[1680472305110,0.3007,28031.0,28030.0,3.941e-05]
[1680472305505,0.3897,28031.0,28027.0,0.05392672]
[1680472305709,0.3897,28031.0,28023.0,0.0892]
[1680472305710,0.0892,28028.0,28023.0,0.0892]
[1680472305913,0.05,28027.0,28023.0,0.0892]
[1680472307013,0.05,28027.0,28023.0,0.0902]
[1680472307315,0.05,28027.0,28023.0,0.0892]
[1680472307316,0.053,28027.0,28023.0,0.0892]
[1680472307515,0.3007,28025.0,28023.0,0.0892]
[1680472307716,0.05,28024.0,28023.0,0.0892]
[1680472308421,0.3007,28025.0,28023.0,0.0892]
[1680472308613,0.05,28024.0,28023.0,0.0892]
[1680472309217,0.05,28024.0,28023.0,0.0952]
[1680472309520,0.05,28024.0,28023.0,0.1022]
[1680472310219,0.3007,28025.0,28023.0,0.1022]
[1680472310417,0.05,28024.0,28017.0,0.05392171]
[1680472310613,0.05,28024.0,28006.0,0.4]
[1680472310614,0.1392,28018.0,28012.0,0.10684096]
[1680472310817,0.0892,28013.0,28007.0,0.35377787]
[1680472311018,0.0887,28014.0,28004.0,0.1075543]
[1680472311019,0.0892,28008.0,28004.0,0.1075543]
[1680472311325,0.0892,28008.0,28005.0,0.05]
[1680472311326,0.05,28007.0,28005.0,0.05]
[1680472311712,0.05,28007.0,28002.0,0.0892]
[1680472311916,0.0892,28006.0,28001.0,0.1392]
[1680472312112,0.05,28005.0,28001.0,0.1392]
[1680472312323,0.05,28005.0,28001.0,0.0892]
[1680472312921,0.02799026,28004.0,28001.0,0.0942]
[1680472313817,0.02799026,28004.0,28002.0,0.05]
[1680472314018,0.07799026,28004.0,28002.0,0.05]
[1680472314222,0.02799026,28004.0,28002.0,0.05]
[1680472314423,0.07799026,28004.0,28001.0,0.1442]
[1680472314625,0.02799026,28004.0,28001.0,0.1442]
[1680472314822,0.07899026,28004.0,28001.0,0.1502]
[1680472315123,0.02799026,28004.0,28001.0,0.1392]
[1680472315329,0.07893026,28004.0,28002.0,0.061]
[1680472315528,0.02893026,28004.0,28002.0,0.061]
[1680472315729,0.02893026,28004.0,28001.0,0.1502]
[1680472315929,0.07893026,28004.0,28001.0,0.1502]
[1680472316231,0.3007,28002.0,28001.0,0.1502]
[1680472316424,0.3007,28002.0,28001.0,0.1392]
[1680472316624,0.3298787,28002.0,28001.0,0.1392]
[1680472317225,0.3298787,28002.0,28001.0,0.0892]
[1680472317624,0.3298787,28002.0,28001.0,0.1002]
[1680472318023,0.3308787,28002.0,28001.0,0.1122]
[1680472320630,0.3308787,28002.0,28001.0,0.1123]
[1680472322035,0.3308787,28002.0,28001.0,0.023]
[1680472322430,0.3808787,28002.0,28001.0,0.023]
[1680472322630,0.3308787,28002.0,28001.0,0.023]
[1680472324236,0.3308787,28002.0,28001.0,0.1123]
[1680472331947,0.3308787,28002.0,28001.0,0.023]
[1680472333341,0.3308787,28002.0,28001.0,0.073]
[1680472333542,0.3308787,28002.0,28001.0,0.023]
[1680472336546,0.3308787,28002.0,28001.0,0.073]
[1680472337048,0.3308787,28002.0,28001.0,0.023]
[1680472337647,0.3308787,28002.0,28001.0,0.073]
[1680472337850,0.3308787,28002.0,28001.0,0.023]
[1680472338849,0.3308787,28002.0,28001.0,0.1615]
[1680472340847,0.0301787,28002.0,28001.0,0.1615]
[1680472346149,0.0301787,28002.0,28001.0,0.2501]
[1680472347347,0.0301787,28002.0,28001.0,0.62569354]
[1680472350550,0.0301787,28002.0,28001.0,0.62579354]
[1680472351153,0.001,28002.0,28001.0,0.62579354]
[1680472362464,0.001,28002.0,28001.0,0.62569443]
[1680472370462,0.00089182,28002.0,28001.0,0.62569443]
[1680472376674,0.00083182,28002.0,28001.0,0.62569443]
[1680472377171,0.00083182,28002.0,28001.0,0.73459443]
[1680472412693,0.3007,28006.0,28002.0,0.05]
[1680472412897,0.3007,28006.0,28005.0,0.1422]
[1680472414000,0.3027,28006.0,28005.0,0.1422]
[1680472416203,0.002,28006.0,28005.0,0.1422]
[1680472421895,0.02207388,28006.0,28005.0,0.1422]
[1680472422902,0.02207388,28006.0,28005.0,0.285]
[1680472426406,0.02207388,28006.0,28005.0,0.3571]
[1680472426606,0.3007,28010.0,28006.0,0.05]
[1680472426813,0.3007,28010.0,28009.0,0.1924]
[1680472427911,0.3087,28010.0,28009.0,0.1424]
[1680472428508,0.3087,28010.0,28009.0,0.1934]
[1680472429115,0.008,28010.0,28009.0,0.1934]
[1680472431815,0.008,28010.0,28009.0,0.1434]
[1680472432209,0.008,28010.0,28009.0,0.1934]
[1680472433410,0.008,28010.0,28009.0,0.3363]
[1680472433710,0.3007,28015.0,28012.0,0.05]
[1680472433918,0.3007,28015.0,28014.0,0.1927]
[1680472434310,0.00634696,28015.0,28014.0,0.3355]
[1680472434506,0.9073,28020.0,28015.0,0.05]
[1680472434507,0.6014,28020.0,28015.0,0.05]
[1680472434715,0.6014,28020.0,28019.0,0.0713]
[1680472435618,0.6034,28020.0,28019.0,0.0713]
[1680472436818,0.6034,28020.0,28019.0,0.0733]
[1680472437013,0.60556628,28020.0,28019.0,0.07316569]
[1680472437216,0.60556628,28020.0,28019.0,0.07216569]
[1680472437616,0.60556628,28020.0,28019.0,0.28636569]
[1680472437913,0.3027,28020.0,28019.0,0.28636569]
[1680472438121,0.002,28020.0,28019.0,0.33636569]
[1680472438710,0.002,28020.0,28019.0,0.33840435]
[1680472439319,0.002,28020.0,28019.0,0.48120435]
[1680472439621,0.3007,28024.0,28019.0,0.8771059]
[1680472439814,0.002,28020.0,28019.0,0.59364021]
[1680472440021,0.05,28023.0,28020.0,0.05]
[1680472440221,0.3007,28024.0,28022.0,0.2856]
[1680472440414,0.3007,28024.0,28023.0,0.1921]
[1680472441024,0.3017,28024.0,28023.0,0.1921]
[1680472441625,0.001,28024.0,28023.0,0.1921]
[1680472441819,0.001,28024.0,28023.0,0.3349]
[1680472442124,0.001,28024.0,28023.0,0.3346]
[1680472442721,0.3007,28026.0,28023.0,0.3346]
[1680472442918,0.001,28024.0,28023.0,0.05]
[1680472443223,0.05,28028.0,28023.0,0.3405]
[1680472443224,0.3507,28028.0,28023.0,0.3405]
[1680472443428,0.3507,28028.0,28027.0,0.0714]
[1680472443724,0.3007,28028.0,28027.0,0.0714]
[1680472443920,0.05,28030.0,28027.0,0.2856]
[1680472444119,0.3007,28031.0,28029.0,0.0714]
[1680472444324,0.3007,28031.0,28030.0,0.0714]